fUST/lending_fUST_20260117
["ID","MTS","AMOUNT","RATE_DAILY","PERIOD"]
[402306372,1768653051139,-500.0,0.00016438,3]
[402306373,1768653051148,-500.0,0.00016438,3]
[402306374,1768653051159,-500.0,0.00016438,3]
[402306375,1768653051169,-500.0,0.00016438,3]
[402306377,1768653051179,-500.0,0.00016438,3]
[402306379,1768653051189,-500.0,0.00016438,3]
[402306381,1768653051199,-500.0,0.00016438,3]
[402306383,1768653051209,-1293.83,0.00016438,3]
[402306385,1768653051219,-500.0,0.00016438,3]
[402306387,1768653051230,-500.0,0.00016438,3]
[402306389,1768653051240,-639.68,0.00016438,3]
[402306391,1768653051250,-500.0,0.00016438,3]
[402306393,1768653051260,-1047.08,0.00016438,3]
[402306395,1768653051270,-1150.99,0.00016438,3]
[402306397,1768653051279,-944.2,0.00016438,3]
[402306399,1768653051289,-500.0,0.00016438,3]
[402306401,1768653051299,-500.0,0.00016438,3]
[402306403,1768653051309,-500.0,0.00016438,3]
[402306405,1768653051318,-500.0,0.00016438,3]
[402306407,1768653051329,-500.0,0.00016438,3]
[402306409,1768653051338,-500.0,0.00016438,3]
[402306411,1768653051348,-500.0,0.00016438,3]
[402306413,1768653051358,-2703.42,0.00016438,3]
[402306415,1768653051367,-500.0,0.00016438,3]
[402306417,1768653051376,-774.73,0.00016438,3]
[402306419,1768653051386,-1993.96,0.00016438,3]
[402306421,1768653051397,-500.0,0.00016438,3]
[402306423,1768653051406,-500.0,0.00016438,3]
[402306425,1768653051415,-500.0,0.00016438,3]
[402306427,1768653051425,-500.0,0.00016438,3]
[402306429,1768653051435,-848.49,0.00016438,3]
[402306431,1768653051445,-500.0,0.00016438,3]
[402306433,1768653051455,-617.76,0.00016438,3]
[402306436,1768653051467,-500.0,0.00016438,3]
[402306438,1768653051476,-500.0,0.00016438,3]
[402306440,1768653051487,-500.0,0.00016438,3]
[402306442,1768653051496,-847.18,0.00016438,3]
[402306444,1768653051506,-500.0,0.00016438,3]
[402306446,1768653051515,-500.0,0.00016438,3]
[402306448,1768653051526,-1000.0,0.00016438,2]
[402306450,1768653051536,-834.37,0.00016438,3]
[402306452,1768653051547,-500.0,0.00016438,3]
[402306454,1768653051556,-500.0,0.00016438,3]
[402306456,1768653051566,-500.0,0.00016438,3]
[402306458,1768653051576,-1719.9,0.00016438,3]
[402306460,1768653051585,-618.91,0.00016438,3]
[402306462,1768653051595,-771.05,0.00016438,3]
[402306463,1768653051604,-500.0,0.00016438,3]
[402306465,1768653051614,-500.0,0.00016438,3]
[402306467,1768653051624,-500.0,0.00016438,3]
[402306469,1768653051633,-500.0,0.00016438,3]
[402306471,1768653051642,-1140.43,0.00016438,3]
[402306473,1768653051653,-500.0,0.00016438,3]
[402306475,1768653051666,-500.0,0.00016438,3]
[402306477,1768653051675,-500.0,0.00016438,3]
[402306479,1768653051688,-500.0,0.00016438,3]
[402306481,1768653051699,-514.45,0.00016438,3]
[402306483,1768653051708,-523.35,0.00016438,3]
[402306485,1768653051718,-500.0,0.00016438,3]
[402306487,1768653051729,-500.0,0.00016438,3]
[402306489,1768653051739,-500.0,0.00016438,3]
[402306491,1768653051748,-500.0,0.00016438,3]
[402306493,1768653051760,-500.0,0.00016438,3]
[402306527,1768653051770,-1709.81,0.00016438,3]
[402306530,1768653052104,-500.0,0.00016438,3]
[402306532,1768653052114,-1132.82,0.00016438,3]
[402306534,1768653052123,-1287.57,0.00016438,3]
[402306536,1768653052133,-500.0,0.00016438,3]
[402306538,1768653052142,-500.0,0.00016438,3]
[402306540,1768653052151,-172.631544,0.00016438,3]
[402306542,1768653052161,-500.0,0.00016438,3]
[402306544,1768653052170,-500.0,0.00016438,3]
[402306547,1768653052180,-500.0,0.00016438,3]
[402306548,1768653052196,-500.0,0.00016438,3]
[402306549,1768653052217,-500.0,0.00016438,3]
[402306551,1768653052228,-183.73779352,0.00016438,3]
[402306553,1768653052239,-435.20636976,0.00016438,3]
[402306555,1768653052249,-1892.19,0.00016438,3]
[402306557,1768653052259,-158.856128,0.00016438,3]
[402306559,1768653052268,-1294.45,0.00016438,3]
[402306561,1768653052277,-563.8,0.00016438,3]
[402306563,1768653052287,-500.0,0.00016438,3]
[402306566,1768653052296,-694.6,0.00016438,3]
[402306568,1768653052306,-817.66,0.00016438,3]
[402306569,1768653052318,-500.0,0.00016438,3]
[402306572,1768653052329,-500.0,0.00016438,3]
[402306573,1768653052339,-1517.43,0.00016438,3]
[402306576,1768653052350,-931.54,0.00016438,3]
[402306577,1768653052363,-479.17924292,0.00016438,2]
[402306580,1768653052372,-500.0,0.00016438,3]
[402306581,1768653052383,-1075.67,0.00016438,3]
[402306583,1768653052394,-1255.88,0.00016438,3]
[402306585,1768653052405,-1451.63,0.00016438,3]
[402306588,1768653052414,-730.33,0.00016438,3]
[402306589,1768653052424,-694.92,0.00016438,3]
[402306591,1768653052434,-500.0,0.00016438,3]
[402306594,1768653052443,-1054.42,0.00016438,3]
[402306595,1768653052452,-500.0,0.00016438,3]
[402306597,1768653052462,-500.0,0.00016438,3]
[402306599,1768653052471,-500.0,0.00016438,3]
[402306600,1768653052481,-500.0,0.00016438,3]
[402306601,1768653052490,-500.0,0.00016438,3]
[402306602,1768653052500,-1559.59,0.00016438,3]
[402306603,1768653052510,-2132.97,0.00016438,3]
[402306604,1768653052519,-500.0,0.00016438,3]
[402306605,1768653052529,-633.14,0.00016438,3]
[402306606,1768653052539,-700.32,0.00016438,3]
[402306607,1768653052548,-500.0,0.00016438,3]
[402306608,1768653052557,-588.41,0.00016438,3]
[402306609,1768653052567,-500.0,0.00016438,3]
[402306610,1768653052576,-500.3248332,0.00016438,3]
[402306611,1768653052587,-500.0,0.00016438,3]
[402306612,1768653052596,-500.0,0.00016438,3]
[402306613,1768653052606,-1199.96,0.00016438,3]
[402306614,1768653052616,-1366.17,0.00016438,3]
[402306615,1768653052625,-1044.14,0.00016438,3]
[402306616,1768653052635,-1102.58,0.00016438,3]
[402306617,1768653052645,-500.0,0.00016438,3]
[402306618,1768653052655,-500.0,0.00016438,3]
[402306619,1768653052665,-500.0,0.00016438,3]
[402306620,1768653052674,-1108.81,0.00016438,3]
[402306621,1768653052683,-1412.19,0.00016438,3]
[402306622,1768653052693,-2136.32,0.00016438,3]
[402306623,1768653052702,-151.0,0.00016438,2]
[402306624,1768653052712,-500.0,0.00016438,3]
[402306625,1768653052722,-151.0,0.00016438,2]
[402306626,1768653052731,-535.22,0.00016438,3]
[402306627,1768653052741,-500.0,0.00016438,3]
[402306628,1768653052751,-929.98,0.00016438,3]
[402306629,1768653052760,-151.0,0.00016438,2]
[402306630,1768653052770,-687.03896503,0.00016438,3]
[402306631,1768653052780,-500.0,0.00016438,3]
[402306632,1768653052790,-913.11,0.00016438,3]
[402306633,1768653052800,-2020.66,0.00016438,3]
[402306634,1768653052810,-686.85,0.00016438,3]
[402306635,1768653052820,-1717.32,0.00016438,3]
[402306636,1768653052829,-500.0,0.00016438,3]
[402306637,1768653052839,-1456.0,0.00016438,3]
[402306638,1768653052849,-980.65,0.00016438,3]
[402306639,1768653052859,-577.36,0.00016438,3]
[402306640,1768653052868,-1622.28,0.00016438,3]
[402306641,1768653052878,-500.0,0.00016438,3]
[402306642,1768653052889,-500.0,0.00016438,3]
[402306643,1768653052899,-500.0,0.00016438,3]
[402306644,1768653052909,-500.0,0.00016438,3]
[402306645,1768653052918,-500.0,0.00016438,3]
[402306646,1768653052928,-500.0,0.00016438,3]
[402306647,1768653052937,-500.0,0.00016438,3]
[402306648,1768653052947,-500.0,0.00016438,3]
[402306649,1768653052957,-500.0,0.00016438,3]
[402306650,1768653052966,-500.0,0.00016438,3]
[402306651,1768653052976,-500.0,0.00016438,3]
[402306652,1768653052986,-626.22,0.00016438,3]
[402306653,1768653052997,-500.0,0.00016438,3]
[402306654,1768653053007,-1431.76,0.00016438,3]
[402306655,1768653053016,-500.0,0.00016438,3]
[402306656,1768653053027,-939.73,0.00016438,3]
[402306657,1768653053036,-500.0,0.00016438,3]
[402306658,1768653053045,-567.25,0.00016438,3]
[402306659,1768653053055,-500.0,0.00016438,3]
[402306660,1768653053064,-512.3,0.00016438,3]
[402306661,1768653053074,-500.0,0.00016438,3]
[402306662,1768653053083,-500.0,0.00016438,3]
[402306663,1768653053093,-1326.69,0.00016438,3]
[402306664,1768653053102,-500.0,0.00016438,3]
[402306665,1768653053112,-500.0,0.00016438,3]
[402306666,1768653053122,-1526.12,0.00016438,3]
[402306667,1768653053132,-500.0,0.00016438,3]
[402306668,1768653053142,-500.0,0.00016438,3]
[402306669,1768653053151,-500.0,0.00016438,3]
[402306670,1768653053162,-500.0,0.00016438,3]
[402306671,1768653053171,-692.94,0.00016438,3]
[402306672,1768653053181,-1447.89,0.00016438,3]
[402306673,1768653053190,-2677.48,0.00016438,3]
[402306674,1768653053200,-500.0,0.00016438,3]
[402306675,1768653053210,-1106.71,0.00016438,3]
[402306676,1768653053220,-500.0,0.00016438,3]
[402306677,1768653053229,-500.0,0.00016438,3]
[402306678,1768653053239,-618.83,0.00016438,3]
[402306679,1768653053251,-500.0,0.00016438,3]
[402306680,1768653053261,-500.0,0.00016438,3]
[402306681,1768653053270,-500.0,0.00016438,3]
[402306682,1768653053280,-500.0,0.00016438,3]
[402306683,1768653053290,-500.0,0.00016438,3]
[402306684,1768653053300,-500.0,0.00016438,3]
[402306685,1768653053310,-500.0,0.00016438,3]
[402306686,1768653053319,-500.0,0.00016438,3]
[402306687,1768653053329,-613.24737358,0.00016438,3]
[402306688,1768653053339,-638.34,0.00016438,3]
[402306689,1768653053349,-500.0,0.00016438,3]
[402306690,1768653053358,-500.0,0.00016438,3]
[402306691,1768653053367,-500.0,0.00016438,3]
[402306692,1768653053377,-643.98345217,0.00016438,3]
[402306693,1768653053387,-151.0,0.00016438,2]
[402306694,1768653053396,-225.94247433,0.00016438,3]
[402306695,1768653053406,-500.0,0.00016438,3]
[402306696,1768653053415,-500.0,0.00016438,3]
[402306697,1768653053425,-500.0,0.00016438,3]
[402306698,1768653053434,-500.0,0.00016438,3]
[402306699,1768653053444,-500.0,0.00016438,3]
[402306700,1768653053453,-503.22,0.00016438,3]
[402306701,1768653053462,-581.87,0.00016438,3]
[402306702,1768653053472,-500.0,0.00016438,3]
[402306703,1768653053483,-500.0,0.00016438,3]
[402306704,1768653053493,-500.0,0.00016438,3]
[402306705,1768653053503,-722.98,0.00016438,3]
[402306706,1768653053512,-500.0,0.00016438,3]
[402306707,1768653053521,-645.09,0.00016438,3]
[402306708,1768653053531,-500.0,0.00016438,3]
[402306709,1768653053540,-504.02216576,0.00016438,3]
[402306710,1768653053549,-325.21716664,0.00016438,3]
[402306711,1768653053559,-863.18,0.00016438,3]
[402306712,1768653053568,-942.19,0.00016438,3]
[402306713,1768653053577,-544.53494198,0.00016438,3]
[402306714,1768653053587,-500.0,0.00016438,3]
[402306715,1768653053596,-500.0,0.00016438,3]
[402306716,1768653053606,-500.0,0.00016438,3]
[402306717,1768653053615,-1098.82,0.00016438,3]
[402306718,1768653053625,-500.0,0.00016438,3]
[402306719,1768653053635,-500.0,0.00016438,3]
[402306720,1768653053644,-641.28,0.00016438,3]
[402306721,1768653053653,-500.0,0.00016438,3]
[402306722,1768653053663,-500.0,0.00016438,3]
[402306723,1768653053672,-500.0,0.00016438,3]
[402306724,1768653053681,-500.0,0.00016438,3]
[402306725,1768653053695,-501.17354468,0.00016438,3]
[402306726,1768653053705,-500.0,0.00016438,3]
[402306727,1768653053714,-500.0,0.00016438,3]
[402306728,1768653053724,-1330.27,0.00016438,3]
[402306729,1768653053734,-722.95,0.00016438,3]
[402306730,1768653053744,-500.0,0.00016438,3]
[402306731,1768653053753,-500.0,0.00016438,3]
[402306732,1768653053763,-500.0,0.00016438,3]
[402306733,1768653053772,-500.0,0.00016438,3]
[402306734,1768653053782,-500.0,0.00016438,3]
[402306735,1768653053792,-500.0,0.00016438,3]
[402306736,1768653053802,-500.0,0.00016438,3]
[402306737,1768653053811,-500.0,0.00016438,3]
[402306738,1768653053820,-500.0,0.00016438,3]
[402306739,1768653053830,-500.0,0.00016438,3]
[402306740,1768653053840,-500.0,0.00016438,3]
[402306741,1768653053849,-1081.34,0.00016438,3]
[402306742,1768653053859,-604.11,0.00016438,3]
[402306743,1768653053868,-500.0,0.00016438,3]
[402306744,1768653053878,-784.27,0.00016438,3]
[402306745,1768653053888,-500.0,0.00016438,3]
[402306746,1768653053897,-500.0,0.00016438,2]
[402306747,1768653053907,-359.48644727,0.00016438,2]
[402306748,1768653053918,-500.0,0.00016438,3]
[402306749,1768653053927,-1786.2,0.00016438,3]
[402306750,1768653053937,-500.0,0.00016438,3]
[402306751,1768653053947,-500.0,0.00016438,3]
[402306752,1768653053957,-500.0,0.00016438,3]
[402306753,1768653053967,-500.0,0.00016438,3]
[402306754,1768653053977,-693.3,0.00016438,3]
[402306755,1768653053987,-1628.03,0.00016438,3]
[402306756,1768653053998,-693.9,0.00016438,3]
[402306757,1768653054007,-500.0,0.00016438,3]
[402306758,1768653054018,-523.8,0.00016438,3]
[402306759,1768653054027,-998.12,0.00016438,3]
[402306760,1768653054037,-500.0,0.00016438,3]
[402306761,1768653054047,-782.18,0.00016438,3]
[402306762,1768653054057,-500.0,0.00016438,3]
[402306763,1768653054067,-500.0,0.00016438,3]
[402306764,1768653054076,-501.51,0.00016438,3]
[402306765,1768653054086,-450.64316952,0.00016438,3]
[402306766,1768653054096,-1075.34,0.00016438,3]
[402306767,1768653054105,-500.0,0.00016438,3]
[402306768,1768653054115,-467.49360859,0.00016438,3]
[402306769,1768653054125,-500.0,0.00016438,3]
[402306770,1768653054135,-500.92721642,0.00016438,3]
[402306771,1768653054145,-500.0,0.00016438,3]
[402306772,1768653054155,-2815.19,0.00016438,3]
[402306773,1768653054165,-500.0,0.00016438,3]
[402306774,1768653054174,-500.0,0.00016438,3]
[402306775,1768653054184,-500.0,0.00016438,3]
[402306776,1768653054194,-500.0,0.00016438,2]
[402306777,1768653054204,-505.46837696,0.00016438,2]
[402306778,1768653054214,-500.0,0.00016438,3]
[402306779,1768653054225,-500.0,0.00016438,3]
[402306780,1768653054237,-500.0,0.00016438,3]
[402306781,1768653054247,-500.0,0.00016438,3]
[402306782,1768653054257,-1439.17,0.00016438,3]
[402306783,1768653054268,-533.98,0.00016438,3]
[402306784,1768653054277,-1659.97,0.00016438,3]
[402306785,1768653054287,-500.0,0.00016438,3]
[402306786,1768653054296,-500.0,0.00016438,3]
[402306787,1768653054305,-469.18172049,0.00016438,3]
[402306788,1768653054315,-2433.28,0.00016438,3]
[402306789,1768653054326,-578.09,0.00016438,3]
[402306790,1768653054335,-500.0,0.00016438,3]
[402306791,1768653054344,-500.0,0.00016438,3]
[402306792,1768653054354,-500.0,0.00016438,3]
[402306793,1768653054363,-500.0,0.00016438,3]
[402306794,1768653054372,-1851.83,0.00016438,3]
[402306795,1768653054381,-659.07,0.00016438,3]
[402306796,1768653054391,-500.0,0.00016438,3]
[402306797,1768653054401,-500.0,0.00016438,3]
[402306798,1768653054410,-500.0,0.00016438,3]
[402306799,1768653054420,-500.0,0.00016438,3]
[402306800,1768653054431,-500.0,0.00016438,3]
[402306801,1768653054441,-875.55,0.00016438,3]
[402306802,1768653054451,-508.96,0.00016438,3]
[402306803,1768653054459,-427.39365242,0.00016438,3]
[402306804,1768653054470,-8441.37,0.00016438,3]
[402306805,1768653054544,-281.28402588,0.00016438,3]
[402306806,1768653054553,-509.99937096,0.00016438,3]
[402306807,1768653054562,-500.0,0.00016438,3]
[402306808,1768653054571,-980.47,0.00016438,3]
[402306809,1768653054580,-601.82,0.00016438,3]
[402306810,1768653054589,-500.0,0.00016438,3]
[402306811,1768653054599,-500.0,0.00016438,3]
[402306812,1768653054608,-500.0,0.00016438,3]
[402306813,1768653054618,-500.0,0.00016438,3]
[402306814,1768653054627,-953.59,0.00016438,3]
[402306815,1768653054636,-500.0,0.00016438,3]
[402306816,1768653054648,-500.0,0.00016438,3]
[402306817,1768653054657,-500.0,0.00016438,3]
[402306818,1768653054666,-1106.34,0.00016438,3]
[402306819,1768653054676,-785.13,0.00016438,3]
[402306820,1768653054686,-733.19,0.00016438,3]
[402306821,1768653054697,-920.91,0.00016438,3]
[402306822,1768653054707,-1239.92,0.00016438,3]
[402306823,1768653054718,-1089.71,0.00016438,3]
[402306824,1768653054727,-500.0,0.00016438,3]
[402306825,1768653054737,-500.0,0.00016438,3]
[402306826,1768653054746,-500.0,0.00016438,3]
[402306827,1768653054755,-976.59,0.00016438,3]
[402306828,1768653054765,-1186.93,0.00016438,3]
[402306829,1768653054776,-500.0,0.00016438,3]
[402306830,1768653054785,-1777.27,0.00016438,3]
[402306831,1768653054796,-500.0,0.00016438,3]
[402306832,1768653054807,-598.89865208,0.00016438,3]
[402306833,1768653054819,-972.38,0.00016438,3]
[402306834,1768653054830,-500.0,0.00016438,3]
[402306835,1768653054841,-618.02349392,0.00016438,3]
[402306836,1768653054850,-2039.45,0.00016438,3]
[402306837,1768653054860,-680.35,0.00016438,3]
[402306838,1768653054869,-1072.76,0.00016438,3]
[402306839,1768653054879,-500.0,0.00016438,3]
[402306840,1768653054888,-500.0,0.00016438,3]
[402306841,1768653054898,-500.0,0.00016438,3]
[402306842,1768653054907,-500.0,0.00016438,3]
[402306843,1768653054916,-1670.99,0.00016438,3]
[402306844,1768653054926,-964.42,0.00016438,3]
[402306845,1768653054935,-822.95,0.00016438,3]
[402306846,1768653054944,-643.39,0.00016438,3]
[402306847,1768653054953,-500.0,0.00016438,3]
[402306848,1768653054962,-1613.1,0.00016438,3]
[402306849,1768653054971,-500.0,0.00016438,3]
[402306850,1768653054980,-500.0,0.00016438,3]
[402306851,1768653054994,-478.32257424,0.00016438,3]
[402306852,1768653055003,-500.0,0.00016438,3]
[402306853,1768653055012,-500.0,0.00016438,3]
[402306854,1768653055021,-500.0,0.00016438,3]
[402306855,1768653055031,-1112.08,0.00016438,3]
[402306856,1768653055040,-612.1,0.00016438,3]
[402306857,1768653055049,-2392.5,0.00016438,2]
[402306858,1768653055059,-2392.5,0.00016438,2]
[402306859,1768653055068,-2392.5,0.00016438,2]
[402306860,1768653055078,-500.0,0.00016438,3]
[402306861,1768653055087,-2392.5,0.00016438,2]
[402306862,1768653055096,-2392.5,0.00016438,2]
[402306863,1768653055106,-2392.5,0.00016438,2]
[402306864,1768653055115,-500.0,0.00016438,3]
[402306865,1768653055124,-2392.5,0.00016438,2]
[402306866,1768653055134,-500.0,0.00016438,3]
[402306867,1768653055143,-2392.5,0.00016438,2]
[402306868,1768653055152,-2392.5,0.00016438,2]
[402306869,1768653055162,-500.0,0.00016438,3]
[402306870,1768653055171,-2392.5,0.00016438,2]
[402306871,1768653055180,-1670.51,0.00016438,3]
[402306872,1768653055189,-2392.5,0.00016438,2]
[402306873,1768653055198,-2392.5,0.00016438,2]
[402306874,1768653055207,-332.91217118,0.00016438,3]
[402306875,1768653055216,-2392.5,0.00016438,2]
[402306876,1768653055225,-2392.5,0.00016438,2]
[402306877,1768653055234,-2392.5,0.00016438,2]
[402306878,1768653055244,-2392.5,0.00016438,2]
[402306879,1768653055253,-1806.23,0.00016438,3]
[402306880,1768653055263,-2392.5,0.00016438,2]
[402306881,1768653055273,-2392.5,0.00016438,2]
[402306882,1768653055283,-2392.5,0.00016438,2]
[402306883,1768653055293,-2392.5,0.00016438,2]
[402306884,1768653055302,-2392.5,0.00016438,2]
[402306885,1768653055312,-2392.5,0.00016438,2]
[402306886,1768653055321,-2392.5,0.00016438,2]
[402306887,1768653055330,-974.97,0.00016438,3]
[402306888,1768653055339,-2392.63255502,0.00016438,2]
[402306889,1768653055348,-500.0,0.00016438,3]
[402306890,1768653055358,-566.52,0.00016438,3]
[402306891,1768653055368,-500.0,0.00016438,3]
[402306892,1768653055378,-508.15,0.00016438,3]
[402306893,1768653055388,-500.0,0.00016438,3]
[402306894,1768653055397,-1170.72,0.00016438,3]
[402306895,1768653055407,-626.5,0.00016438,3]
[402306896,1768653055416,-1530.01,0.00016438,3]
[402306897,1768653055425,-500.0,0.00016438,3]
[402306898,1768653055434,-500.0,0.00016438,3]
[402306899,1768653055444,-1016.59,0.00016438,3]
[402306900,1768653055455,-500.0,0.00016438,3]
[402306901,1768653055465,-500.0,0.00016438,3]
[402306902,1768653055475,-500.0,0.00016438,3]
[402306903,1768653055484,-871.59,0.00016438,3]
[402306904,1768653055496,-570.88,0.00016438,3]
[402306905,1768653055506,-791.73,0.00016438,3]
[402306906,1768653055517,-849.02,0.00016438,3]
[402306907,1768653055528,-500.0,0.00016438,3]
[402306908,1768653055538,-500.0,0.00016438,3]
[402306909,1768653055548,-500.0,0.00016438,3]
[402306910,1768653055558,-1482.88,0.00016438,3]
[402306911,1768653055568,-617.9,0.00016438,3]
[402306912,1768653055579,-500.0,0.00016438,3]
[402306913,1768653055589,-500.0,0.00016438,3]
[402306914,1768653055600,-500.0,0.00016438,3]
[402306915,1768653055610,-500.0,0.00016438,3]
[402306916,1768653055623,-500.0,0.00016438,3]
[402306917,1768653055633,-300.946978,0.00016438,2]
[402306918,1768653055643,-300.946978,0.00016438,2]
[402306919,1768653055653,-500.0,0.00016438,3]
[402306920,1768653055663,-500.0,0.00016438,3]
[402306921,1768653055673,-863.5,0.00016438,3]
[402306922,1768653055685,-500.0,0.00016438,3]
[402306923,1768653055699,-300.946978,0.00016438,2]
[402306924,1768653055708,-753.38,0.00016438,3]
[402306925,1768653055719,-300.946978,0.00016438,2]
[402306926,1768653055728,-500.0,0.00016438,3]
[402306927,1768653055739,-500.0,0.00016438,2]
[402306928,1768653055749,-300.946978,0.00016438,2]
[402306929,1768653055759,-300.946978,0.00016438,2]
[402306930,1768653055768,-500.0,0.00016438,3]
[402306931,1768653055778,-1911.71,0.00016438,3]
[402306932,1768653055788,-500.0,0.00016438,3]
[402306933,1768653055797,-500.0,0.00016438,3]
[402306934,1768653055806,-500.0,0.00016438,3]
[402306935,1768653055816,-14952.36,0.00016438,3]
[402306936,1768653055825,-500.0,0.00016438,3]
[402306937,1768653055835,-500.0,0.00016438,3]
[402306938,1768653055844,-500.0,0.00016438,3]
[402306939,1768653055853,-500.0,0.00016438,2]
[402306940,1768653055863,-300.946978,0.00016438,2]
[402306941,1768653055872,-300.946978,0.00016438,2]
[402306942,1768653055882,-501.88,0.00016438,3]
[402306943,1768653055891,-500.0,0.00016438,3]
[402306944,1768653055901,-871.62,0.00016438,3]
[402306945,1768653055911,-500.0,0.00016438,3]
[402306946,1768653055921,-530.71,0.00016438,3]
[402306947,1768653055931,-634.18,0.00016438,3]
[402306948,1768653055940,-1429.84,0.00016438,3]
[402306949,1768653055950,-500.0,0.00016438,3]
[402306950,1768653055959,-500.0,0.00016438,3]
[402306951,1768653055969,-151.0,0.00016438,2]
[402306952,1768653055978,-500.0,0.00016438,2]
[402306953,1768653055988,-500.0,0.00016438,3]
[402306954,1768653055997,-500.0,0.00016438,3]
[402306955,1768653056007,-156.100747,0.00016438,2]
[402306956,1768653056017,-500.0,0.00016438,3]
[402306957,1768653056027,-500.0,0.00016438,3]
[402306958,1768653056037,-1003.52,0.00016438,3]
[402306959,1768653056047,-565.41,0.00016438,3]
[402306960,1768653056056,-500.0,0.00016438,3]
[402306961,1768653056066,-2006.9,0.00016438,3]
[402306962,1768653056075,-1200.0,0.00016438,2]
[402306963,1768653056084,-3788.27,0.00016438,3]
[402306964,1768653056093,-1094.24,0.00016438,3]
[402306965,1768653056103,-500.0,0.00016438,3]
[402306966,1768653056113,-500.0,0.00016438,3]
[402306967,1768653056122,-500.0,0.00016438,2]
[402306968,1768653056132,-228.977496,0.00016438,2]
[402306969,1768653056142,-228.977496,0.00016438,2]
[402306970,1768653056153,-228.977496,0.00016438,2]
[402306971,1768653056163,-228.977496,0.00016438,2]
[402306972,1768653056172,-3000.0,0.00016438,2]
[402306973,1768653056182,-180.10446059,0.00016472,2]
[402306974,1768653056191,-852.182725,0.00016531,7]
[402306975,1768653056200,-1500.0,0.0001656,2]
[402306976,1768653056209,-151.0,0.00016566,2]
[402306977,1768653056218,-151.0,0.00016566,2]
[402306978,1768653056227,-151.0,0.00016566,2]
[402306979,1768653056236,-250.0,0.00016566,2]
[402306980,1768653056246,-151.0,0.00016566,2]
[402306981,1768653056255,-250.0,0.00016566,2]
[402306982,1768653056264,-445.202766,0.00016566,2]
[402306983,1768653056274,-151.0,0.00016566,2]
[402306984,1768653056283,-151.0,0.00016566,2]
[402306985,1768653056292,-250.0,0.00016566,2]
[402306986,1768653056302,-250.0,0.00016566,2]
[402306987,1768653056312,-151.0,0.00016566,2]
[402306988,1768653056321,-201.18700456,0.00016566,2]
[402306989,1768653056330,-250.0,0.00016566,2]
[402306990,1768653056339,-250.0,0.00016566,2]
[402306991,1768653056348,-193.25034379,0.00016566,2]
[402306992,1768653056357,-250.0,0.00016566,2]
[402306993,1768653056366,-250.0,0.00016566,2]
[402306994,1768653056376,-250.0,0.00016566,2]
[402306995,1768653056385,-250.0,0.00016566,2]
[402306996,1768653056394,-250.0,0.00016566,2]
[402306997,1768653056403,-250.0,0.00016566,2]
[402306998,1768653056413,-250.0,0.00016566,2]
[402306999,1768653056423,-151.0,0.00016566,2]